{"text_format":"1","workbook":"xlsx","n_sheets":3,"sheets":["1","druk zlecenia","dane"],"not_rendered":{"charts":0,"images":1,"macros":1,"external_links":0,"defined_names":28,"comments":0,"pivot_tables":0},"unopened":[],"bounds":{"document_bytes":16777216,"sheet_cells":100000,"rows_first":2000,"rows_last":500,"rows_between":2000,"halvings":0,"cell_chars":16384,"cell_head_chars":4096},"cells_cut":0,"cells_raw":0,"read":"whole","date_system":"1900"}

{"sheet":"1","index":0,"n_rows":2,"n_cols":2,"rows_kept":2,"cut":false,"hidden":true,"merged":[[1,1,3,6]]}
[]
[null,"W CELU WYPEŁNIENIA DRUKU ZLECENIA, \nWŁĄCZ MAKRA W EXCELU"]

{"sheet":"druk zlecenia","index":1,"n_rows":171,"n_cols":30,"rows_kept":171,"cut":false,"hidden":false,"merged":[[61,18,61,19],[61,25,61,26],[61,28,61,29],[21,12,21,13],[32,12,32,13],[32,10,32,11],[45,2,45,3],[24,12,24,14],[37,7,37,8],[31,9,31,11],[31,12,31,14],[45,10,45,11],[52,11,52,12],[52,4,52,5],[51,1,51,3],[52,1,52,3],[58,1,58,4],[58,8,58,10],[39,2,39,3],[40,1,41,5],[39,8,39,9],[40,7,41,11],[29,6,29,10],[35,1,35,2],[107,1,107,14],[62,2,62,3],[66,1,66,3],[67,1,67,3],[66,7,66,9],[67,7,67,9],[62,9,62,10],[59,1,59,2],[59,3,59,4],[59,8,59,10],[59,11,59,12],[60,1,60,4],[101,4,101,14],[61,2,61,3],[61,9,61,10],[61,12,61,13],[91,15,110,15],[111,15,127,15],[128,15,145,15],[146,15,163,15],[0,0,19,0],[20,0,39,0],[40,0,57,0],[58,0,88,0],[91,0,110,0],[111,0,127,0],[117,9,117,11],[109,1,109,14],[111,1,111,14],[112,1,112,14],[113,1,113,14],[116,2,116,3],[116,4,116,5],[99,8,99,9],[99,5,99,6],[102,1,102,14],[2,5,3,9],[91,5,92,9],[128,0,145,0],[146,0,163,0],[0,15,19,15],[20,15,39,15],[40,15,57,15],[58,15,88,15],[55,1,55,5],[55,8,55,12],[56,1,56,5],[56,8,56,12],[57,1,57,4],[57,8,57,10],[57,11,57,12],[16,1,17,1],[16,2,17,4],[18,2,18,4],[19,2,19,4],[20,2,20,4],[21,2,21,4],[16,12,17,13],[8,3,8,7],[9,3,9,7],[10,3,10,6],[12,3,12,4],[11,3,11,4],[14,3,14,10],[34,9,34,10],[29,2,29,5],[50,11,50,12],[50,8,50,10],[51,8,51,10],[52,8,52,10],[48,8,48,12],[49,8,49,12],[49,1,49,5],[50,1,50,4],[46,10,46,11],[43,7,44,14],[31,19,31,21],[31,22,31,24],[32,20,32,21],[34,19,34,21],[34,22,34,24],[35,20,35,21],[35,22,35,23],[48,1,48,5],[16,14,17,14],[28,8,28,9],[16,10,17,11],[16,8,17,9],[16,5,16,7],[18,8,18,9],[19,8,19,9],[20,8,20,9],[21,8,21,9],[18,10,18,11],[19,10,19,11],[20,10,20,11],[21,10,21,11],[18,12,18,13],[19,12,19,13],[20,12,20,13]]}
[{"$f":"dane!$H$2","v":" "},null,null,null,null,null,null,null,null,null,null,null,null,null,null,{"$f":"dane!$H$2","v":" "},null,null,null,null,null,null,"widocznosc arkusza",{"$f":"P90","v":0}]
[null,null,null,null,null,null,null,null,null,null,null,null,null,null,null,null,null,null,null,null,null,null,"??",{"$f":"IF(dane!H2<>\"\",1,0)","v":1},"zał godz",{"$f":"IF(OR(C62=\"start załadunku\",F62=\"koniec załadunku\"),0,1)","v":0},"wył godz",{"$f":"IF(OR(J62=\"start wyładunku\",M62=\"koniec wyładunku\"),0,1)","v":0},"czy direct",{"$f":"IF(OR(C30=\"częściowy DB SCHENKERpart load\",C30=\"całopojazdowy DB SCHENKERfull load\"),1,0)","v":0}]
[null,null,null,null,null,"SPEDYCYJNE ZLECENIE TRANSPORTOWE",null,null,null,null,null,null,null,null,null,null,null,null,null,null,null,null,"??",false,"zał typ",{"$f":"IF(C63=\"wybierz\",0,1)","v":0},"wył typ",{"$f":"IF(J63=\"wybierz\",0,1)","v":0},"załwył check",{"$f":"IF(AD2=0,0,IF(AND(Z2+Z3+AB2+AB3=4,AD2=1),0,1))","v":0}]
[null,null,null,null,null,null,null,null,null,null,null,null,null,null,null,null,null,null,null,null,null,null,"specialservice",{"$f":"VLOOKUP(C30,dane!$B$1:$E$10,4,FALSE)","v":0}]
[null,null,null,null,null,null,null,"Dla umów zawartych od 04.09.2017 r.",null,null,null,null,null,null,null,null,null,null,null,null,null,null,"phone empty",{"$f":"IF(AND(L53=\"telefon kontaktowy\",L60=\"telefon kontaktowy\"),1,0)","v":1}]
[null,null,null,null,null,"                                      Międzynarodowy Transport Lądowy",null,null,null,null,null,null,null,null,null,null,null,null,null,null,null,null,"NIP empty",{"$f":"IF(LEN(D12)<>10,1,0)","v":1}]
[null,null,null,null,null,null,null,null,null,null,null,null,null,null,null,null,null,null,null,null,null,null,"macrotype",{"$f":"VLOOKUP(C30,dane!$B$1:$C$10,2,FALSE)","v":"macrotype"}]
[null,null,null,null,null,null,null,null,null,null,null,null,null,null,null,null,null,null,null,null,null,null,"ADR check",{"$f":"IF(C25=\"\",0,1)","v":0}]
[null,"ZLECENIODAWCA*:",null,"nazwa",null,null,null,null,null,null,null,null,null,null,null,null,null,null,null,null,null,null,"ADR empty",{"$f":"IF(X8=0,0,IF(OR(E25=\"\",G25=\"\",I25=\"\",K25=\"\",M25=\"wybierz\"),1,0))","v":0}]
[null,null,null,"ulica",null,null,null,null,null,null,null,null,null,null,null,null,null,null,null,null,null,null,"ubezpieczenie check",{"$f":"IF(AND(C38=\"TAK\",H38=\"\"),1,0)","v":0}]
[null,null,null,"miasto",null,null,null,"kod-pocztowy",null,null,null,null,null,null,null,null,null,null,null,null,null,null,"to be agreed",false]
[null,null,null,"NIP*",null,"* pole obowiązkowe",null,null,null,null,null,null,null,null,null,null,null,null,null,null,null,null,"pre notice",false]
[null,null,null,"tel. kontaktowy",null,null,null,null,null,null,null,null,null,null,null,null,null,null,null,null,null,null,"COD",false]
[null,null,null,null,null,null,null,null,null,null,null,null,null,null,null,null,null,null,null,null,null,null,"agreed check",{"$f":"IF(AND(X11=TRUE,OR(J32=\"osoba kontaktowa\",M32=\"telefon kontaktowy\")),1,0)","v":0}]
[null,"ZLECENIOBIORCA:",null,"SCHENKER  sp. z o.o. ul. Żwirki i Wigury 16C, 02-092 Warszawa",null,null,null,null,null,null,null,null,null,null,null,null,null,null,null,null,null,null,"pre notice check",{"$f":"IF(AND(X12=TRUE,OR(J32=\"osoba kontaktowa\",M32=\"telefon kontaktowy\")),1,0)","v":0}]
[null,null,null,null,null,null,null,null,null,null,null,null,null,null,null,null,null,null,null,null,null,null,"time pickup",false]
[null,"Ilość*","Rodzaj opakowania*",null,null,"Wymiary",null,null,"Waga pojedynczego opakowania brutto (kg)*",null,"Waga łączna brutto wszystkich opakowań (kg)*",null,"Przewożony towar  (nazwa w języku polskim i angielskim)*",null,"Piętrowalne*",null,null,null,null,null,null,null,"time delivery",false]
[null,null,null,null,null,"Dł [m]","Szer [m]","Wys [m]",null,null,null,null,null,null,null,null,null,null,null,null,null,null,"fix day delivery",false]
[null,null,null,null,null,null,null,null,null,null,null,null,null,null,"wybierz",null,null,null,null,null,null,null,"data gotowosci",{"$f":"IF(B61=\"Data gotowości towaru do załadunku*\",1,0)","v":1}]
[null,null,"wybierz",null,null,null,null,null,null,null,null,null,null,null,"wybierz"]
[{"$f":"dane!$H$2","v":" "},null,"wybierz",null,null,null,null,null,null,null,null,null,null,null,"wybierz",{"$f":"dane!$H$2","v":" "}]
[null,null,"wybierz",null,null,null,null,null,null,null,null,null,null,null,"wybierz"]
[]
[null,"W przypadku, gdy towar jest towarem niebezpiecznym w myśl Konwencji ADR, obowiązkowo proszę podać:"]
[null,"Nr UN       ",null,"klasa",null,"grupa pakowania",null,"waga(kg)",null,"ilość opakowań",null,"rodzaj opakowań      ","wybierz"]
[]
[null,"Jeśli towar jest na wyłączeniach LQ „Limited Quantities”, prosimy o podanie:  ",null,null,null,"waga ładunku ADR (kg):         ",null,"oraz  Numeru UN     "]
[null,"W przypadku, gdy towar jest TOWAREM  STRATEGICZNYM w myśl Ustawy z 29.11.2000 (Dz. U. Nr 119 z 2000 r, poz. 1250, z  późniejszymi zmianami), obowiązkowo proszę podać:"]
[null,"Numer kontrolny towaru:",null,"waga(kg)",null,"ilość opakowań",null,"rodzaj opakowań      "]
[null,"System transportu**:","wybierz"]
[null,"UWAGA! Informacje na temat dostępności produktu DB SCHENKERsystem premium zdefiniowane są w Warunkach Świadczenia Usług"]
[null,"Usługi dodatkowe:",null,"Pre notice pick-up",null,"Pre notice delivery",null,null,null,null,null,null,null,null,null,null,null,"kwota","waluta","osoba kontaktowa",null,null,"telefon kontaktowy"]
[null,null,null,"Fix Day pick- up",null,"Fix Day delivery","          Same Day collection",null,null,"Time window pick- up",null,null,"Time window delivery",null,null,null,null,null,null,null,"wybierz",null,null,null,"wybierz"]
[null,"Płatnik**"]
[null,"Strona płacąca za transport",null,null,null,"     Inne warunki płatności (wg Incoterms 2000 albo 2010)**: ",null,null,null,"wybierz"]
[null,"wybierz",null,null,null,"               Warunki Incoterms:   ",null,"wybierz"]
[null,null,null,null,null,"Dla przesyłek DB SCHENKERsystem premium dostępne są wyłącznie warunki: EXW, CPT, DDT (DAP and DAT), DDP",null,null,null,null,null,null,null,null,null,null,null,"kwota"]
[null,"Ubezpieczenie Cargo**:     ","NIE",null,"                                         Wartość towaru do ubezpieczenia  (+waluta): ",null,null,null,null,"PLN"]
[null,"Instrukcje specjalne ( odbiór/dostawa: targi,lotnisko, port) – wypełnić jeśli dotyczy "]
[null,"miejsce odbioru","wybierz",null,null,null,null,"miejsce dostawy","wybierz"]
[{"$f":"dane!$H$2","v":" "},"miejsce na dodatkowe instrukcje",null,null,null,null,null,"miejsce na dodatkowe instrukcje",null,null,null,null,null,null,null,{"$f":"dane!$H$2","v":" "},null,"data dostawy:"]
[]
[]
[null,"Dotyczy transportu na teren Węgier ",null,null,null,null,null,{"$f":"IF(C30=\"wybierz\",\"\",IF(dane!H5=\"SYSTEM\",\n\"Przesyłki podlegające przepisom Ustawy o systemie monitorowania drogowego przewozu towarów (SENT) są możliwe do realizacji wyłącznie systemem DB Schenkerpart load lub DB Schenkerfull load\",\n\"W przypadku gdy przesyłka podlega przepisom Ustawy o systemie monitorowania drogowego przewozu towarów (SENT), proszę podać:\"))","v":""}]
[null,"W przypadku gdy przesyłka objęta jest obowiązkiem rejestracji w systemie EKAER, proszę podać:"]
[null,"Numer EKAER:    E      ",null,null,null,null,null,null,{"$f":"IF(C30=\"wybierz\",\"\",IF(dane!H5=\"SYSTEM\",\n\"\",\n\"Nr referencyjny:            SENT       \"))","v":""}]
[null,null,null,null,null,null,null,null,{"$f":"IF(C30=\"wybierz\",\"\",IF(dane!H5=\"SYSTEM\",\n\"\",\n\"Klucz dla przewoźnika:    KD-    \"))","v":""}]
[null,"Nadawca* (nazwa, adres, kraj, email, telefon i osoba kontaktowa):",null,null,null,null,null,"Odbiorca* (nazwa, adres, kraj, email, telefon i osoba kontaktowa):"]
[null,"nazwa",null,null,null,null,null,null,"nazwa"]
[null,"ulica",null,null,null,null,null,null,"ulica"]
[null,"miasto",null,null,null,"kod-pocztowy",null,null,"miasto",null,null,"kod-pocztowy"]
[null,"państwo",null,null,null,null,null,null,"państwo"]
[null,"osoba kontaktowa",null,null,"telefon kontaktowy",null,null,null,"osoba kontaktowa",null,null,"telefon kontaktowy",null,null,{"$f":"IF(OR($C$30=\"drobnicowy DB SCHENKERsystem z opcją fix day\",$X$3=TRUE),\"<-POLE OBOWIĄZKOWE!!\",\"\")","v":""}]
[]
[null,"Termin i miejsce załadunku* (dokładny adres, kraj, data)",null,null,null,null,null," Miejsce wyładunku* (dokładny adres, kraj)"]
[null,"nazwa",null,null,null,null,null,null,"nazwa"]
[null,"ulica",null,null,null,null,null,null,"ulica"]
[null,"miasto",null,null,null,"kod-pocztowy",null,null,"miasto",null,null,"kod-pocztowy"]
[{"$f":"dane!$H$2","v":" "},"państwo",null,null,null,null,null,null,"państwo",null,null,null,null,null,null,{"$f":"dane!$H$2","v":" "}]
[null,"osoba kontaktowa",null,"telefon kontaktowy",null,null,null,null,"osoba kontaktowa",null,null,"telefon kontaktowy",null,null,{"$f":"IF(OR($C$30=\"drobnicowy DB SCHENKERsystem z opcją fix day\",$X$3=TRUE),\"<-POLE OBOWIĄZKOWE!!\",\"\")","v":""}]
[null,"Data gotowości towaru do załadunku*"]
[null,"godziny załadunku***:    ","start załadunku",null,"-","koniec załadunku",null,"godziny wyładunku***: ",null,"start wyładunku",null,"-","koniec wyładunku",null,null,null,null,"godziny załadunku***:    ","start załadunku",null,"-","koniec załadunku",null,null,"godziny wyładunku***: ","start wyładunku",null,"-","koniec wyładunku"]
[null,"sposób załadunku***: ","wybierz",null,null,null,null,"sposób wyładunku***: ",null,"wybierz"]
[]
[null,"Odprawa celna exportowa** ",null,"wykonana",null,"do wykonania",null,"Odprawa celna importowa** ",null,null,"wykonana",null,"do wykonania"]
[null,"w agencji celnej (nazwa i adres):",null,null,null,null,null,"w agencji celnej (nazwa i adres):"]
[null,"nazwa",null,null,null,null,null,"nazwa"]
[null,"adres",null,null,null,null,null,"adres"]
[]
[null,"Stawka za transport*:",null," (waluta:","waluta",")",null,"Słownie*: "]
[null,"+ korekta paliwowa + opłata za wprowadzenie zlecenia do systemu operacyjnego DB SCHENKER wg Tabeli Opłat Dodatkowych"]
[]
[]
[]
[]
[]
[]
[]
[]
[]
[]
[]
[null,"Rejestracja:",null,null,"Kapitał zakładowy:",null,"Siedziba spółki:",null,null,"NIP: 527-010-38-24"]
[null,"Sąd Rejonowy dla m.st. Warszawy",null,null,"186.294.430 zł",null,"ul. Żwirki i Wigury 16C",null,null,"NIP UE: PL 5270103824"]
[null,"XIV Wydział Gospodarczy Krajowego ",null,null,null,null,"02-092 Warszawa",null,null,"REGON: 010500539"]
[null,"Rejestru Sądowego",null,null,null,null,null,null,null,"BDO: 000026152"]
[null,"KRS 40104"]
[]
[]
[null,null,null,null,null,null,null,null,null,null,null,null,null,null,null,0]
[]
["",null,null,null,null,"SPEDYCYJNE ZLECENIE TRANSPORTOWE",null,null,null,null,null,null,null,null,null,""]
[]
[null,null,null,null,null,null,null,"Dla umów zawartych od 04.09.2017 r."]
[null,null,null,null,null,"                                      Międzynarodowy Transport Lądowy"]
[]
[]
[null,"Sposób zapłaty: przelew"]
[null,"Termin zapłaty:  14 dni od daty wystawienia faktury lub według ustaleń indywidualnych w formie pisemnej lub za pośrednictwem poczty elektronicznej, pod rygorem nieważności."]
[null,"W przypadku importu spoza UE Zleceniodawca oświadcza, że towar**: jest",null,null,null,"wybierz",null,"stawką podatku VAT","wybierz"]
[]
[null,"Uwagi dodatkowe oraz dokumenty dołączone do przesyłki:      "]
[null,"*pole obowiązkowe; ** właściwe zaznaczyć/wybrać; *** preferowane godziny załadunku i wyładunku"]
[null,"Warunki zlecenia:"]
[null,"1. Schenker przyjmuje na siebie prawa i obowiązki przewoźnika umownego, na zasadach przewidzianych w Konwencji o Umowie Międzynarodowego Przewozu Drogowego Towarów (CMR) z dnia 19.05.1956 r. (Dz.U. z 1962 r., Nr 49, poz238). "]
[null,"W sprawach nieuregulowanych zleceniem stosuje się Warunki Świadczenia Usług Schenker w zakresie Międzynarodowej Spedycji Drogowej, opublikowane na stronach internetowych Schenker – www.dbschenker.pl, co do których zleceniodawca oświadcza, "]
[null,"że się z nimi zapoznał , akceptuje je bez zastrzeżeń i zobowiązuje się je stosować."]
[null,"2. Ceny będą przeliczane na PLN i będą powiększone o podatek VAT w wysokości zgodnej z Ustawą z dnia 11.03.2004 r. (z późniejszymi zmianami) o podatku od towarów i usług."]
[null,"3. Do stawek za transport doliczana będzie korekta paliwowa w wysokości i na zasadach publikowanych na stronie  internetowej www.dbschenker.pl"]
[null,"4. W przypadku importu towarów spoza UE Zleceniodawca zobowiązuje się przesłać mailem do Schenker kopie SAD w dniu odprawy lub w dniu następnym. Nie przesłanie SAD w terminie spowoduje naliczenie przez Schenker podatku VAT za cały odcinek krajowy w wysokości wynikającej "]
[null,"z aktualnie obowiązujących przepisów i wystawienie faktury korygującej"]
[{"$f":"dane!$H$2","v":" "},"5. W przypadku pierwszego zlecenia prosimy załączyć kopię dokumentów: regon, NIP lub NIP PL w przypadku wewnątrzwspólnotowej dostawy lub nabycia towaru (UE), dokumenty rejestrowe (KRS albo CEDiIG).",null,null,null,null,null,null,null,null,null,null,null,null,null,{"$f":"dane!$H$2","v":" "}]
[null,"6. Schenker zastrzega sobie prawo do sprawdzenia zawartości przesyłki ( bez ingerencji w opakowanie) z wykorzystaniem dostępnych metod i środków kontroli."]
[null,"7. W przypadku jeżeli Zleceniodawca nie wskaże numerów SENT i / lub EKAER przyjmuje się, że przesyłka nie podlega odpowiednim regulacjom w tym zakresie."]
[]
[]
[null,null,"miejsce",null,"data"]
[null,null,null,null,null,null,null,null,null,"(imię i nazwisko Zleceniodawcy, pieczątka, podpis)"]
[]
[]
[]
[]
[]
[]
[]
[]
[]
[]
[{"$f":"dane!$H$2","v":" "},null,null,null,null,null,null,null,null,null,null,null,null,null,null,{"$f":"dane!$H$2","v":" "}]
[]
[]
[]
[]
[]
[]
[]
[]
[]
[]
[]
[]
[]
[]
[]
[]
[]
[{"$f":"dane!$H$2","v":" "},null,null,null,null,null,null,null,null,null,null,null,null,null,null,{"$f":"dane!$H$2","v":" "}]
[]
[]
[]
[]
[]
[]
[]
[]
[]
[]
[]
[]
[]
[]
[null,null,null,null,null,null,null,null,null,null,null,null,null,null,null,null,null,null,{"$f":"IF(dane!H145<>\"\",1,0)","v":0}]
[]
[]
[]
[]
[null,"Rejestracja:",null,null,"Kapitał zakładowy:",null,"Siedziba spółki:",null,null,"NIP: 527-010-38-24"]
[null,"Sąd Rejonowy dla m.st. Warszawy",null,null,"186.294.430 zł",null,"ul. Żwirki i Wigury 16C",null,null,"NIP UE :PL 5270103824"]
[null,"XIV Wydział Gospodarczy Krajowego ",null,null,null,null,"02-092 Warszawa",null,null,"REGON: 010500539"]
[null,"Rejestru Sądowego",null,null,null,null,null,null,null,"BDO: 000026152"]
[null,"KRS 40104"]

{"sheet":"dane","index":2,"n_rows":20,"n_cols":30,"rows_kept":20,"cut":false,"hidden":true,"merged":[]}
[null,"wybierz","macrotype"," ",0,null,null,"border type",null,"wybierz",null,"wybierz",null,"wybierz",null,"wybierz",null,"wybierz",null,"wybierz",null,"waluta",null,"wybierz",null,"wybierz",null,"wybierz",null,"wybierz"]
[null,"drobnicowy DB SCHENKERsystem premium","premium","PREMIUM",0,null,null,{"$f":"VLOOKUP('druk zlecenia'!C30,dane!$B$1:$D$10,3,FALSE)","v":" "},null,"Zleceniodawca",null,"Incoterms 2000",null,"CIP",null,"TAK",null,"Targi",null,"tylny",null,"EUR",null,"zwolniony",null,0,null,"1/2 PALETY",null,"Opakowanie metalowe lekkie"]
[null,"drobnicowy DB SCHENKERsystem premium 10","premium","PREMIUM 10",0,null,null,null,null,"Odbiorca w kraju dostawy",null,"Incoterms 2010",null,"CPT",null,"NIE",null,"Lotnisko",null,"boczny (firanka)",null,"PLN",null,"opodatkowany",null,0.05,null,"BECZKA",null,"Bęben"]
[null,"drobnicowy DB SCHENKERsystem premium 13","premium","PREMIUM 13",0,null,null,"Komunikat SENT",null,null,null,null,null,"DAP",null,null,null,"Port",null,"od góry",null,"USD",null,null,null,0.08,null,"BĘBEN",null,"DPPL"]
[null,"drobnicowy DB SCHENKERsystem","normal"," ",0,null,null,{"$f":"IF(OR('druk zlecenia'!C30=dane!B9,'druk zlecenia'!C30=dane!B10),\"DIRECT\",\"SYSTEM\")","v":"SYSTEM"},null,null,null,null,null,"DAT",null,null,null,null,null,"sztywna zabudowa",null,"SEK",null,null,null,0.23,null,"EURO PALETA",null,"Kanister"]
[null,"drobnicowy DB SCHENKERsystem z opcją fix day","fix","FIX",1,null,null,null,null,null,null,null,null,"DDP",null,null,null,null,null," auto z windą",null,"NOK",null,null,null,null,null,"HOBOK",null,"Skrzynia"]
[null,"drobnicowy DB SCHENKERsystem z opcją fix day 10","fix","FIX 10",1,null,null,null,null,null,null,null,null,"DDU",null,null,null,null,null,"auto do 3,5 tony",null,"CHF",null,null,null,null,null,"INNA PALETA",null,"Duże opakowanie"]
[null,"drobnicowy DB SCHENKERsystem z opcją fix day 13","fix","FIX 13",1,null,null,null,null,null,null,null,null,"EXW",null,null,null,null,null,null,null,null,null,null,null,null,null,"KANISTER",null,"Worek"]
[null,"częściowy DB SCHENKERpart load","direct"," ",0,null,null,null,null,null,null,null,null,"FCA",null,null,null,null,null,null,null,null,null,null,null,null,null,"KARTON",null,"Opakowanie złożone"]
[null,"całopojazdowy DB SCHENKERfull load","direct"," ",0,null,null,null,null,null,null,null,null,null,null,null,null,null,null,null,null,null,null,null,null,null,null,"PACZKA",null,"Butla"]
[null,null,null,null,null,null,null,null,null,null,null,null,null,null,null,null,null,null,null,null,null,null,null,null,null,null,null,"PALETA BEZZWROTNA",null,"Opakowanie awaryjne"]
[null,null,null,null,null,null,null,null,null,null,null,null,null,null,null,null,null,null,null,null,null,null,null,null,null,null,null,"PUDŁO"]
[null,null,null,null,null,null,null,null,null,null,null,null,null,null,null,null,null,null,null,null,null,null,null,null,null,null,null,"RAMA"]
[null,null,null,null,null,null,null,null,null,null,null,null,null,null,null,null,null,null,null,null,null,null,null,null,null,null,null,"ROLKA"]
[null,null,null,null,null,null,null,null,null,null,null,null,null,null,null,null,null,null,null,null,null,null,null,null,null,null,null,"RURA"]
[null,null,null,null,null,null,null,null,null,null,null,null,null,null,null,null,null,null,null,null,null,null,null,null,null,null,null,"SKRZYNIA"]
[null,null,null,null,null,null,null,null,null,null,null,null,null,null,null,null,null,null,null,null,null,null,null,null,null,null,null,"SKRZYNIOPALETA"]
[null,null,null,null,null,null,null,null,null,null,null,null,null,null,null,null,null,null,null,null,null,null,null,null,null,null,null,"WIĄZKA"]
[null,null,null,null,null,null,null,null,null,null,null,null,null,null,null,null,null,null,null,null,null,null,null,null,null,null,null,"WOREK"]
[null,null,null,null,null,null,null,null,null,null,null,null,null,null,null,null,null,null,null,null,null,null,null,null,null,null,null,"ZBIORNIK"]